bitfinex/quotes_ETHUSD_20260308
["timestamp","ask_amount","ask_price","bid_price","bid_amount"]
[1772938851044,1.28572869,1944.5,1944.0,1.68718249]
[1772938853070,6.78978132,1944.7,1944.0,2.97318909]
[1772938853271,6.78978132,1944.7,1944.0,2.97318237]
[1772938853272,2.93307507,1944.7,1944.0,2.97318237]
[1772938853563,2.93307507,1944.7,1944.1,1.68718249]
[1772938853773,1.28558552,1944.7,1944.1,1.68718249]
[1772938854833,1.28552973,1944.8,1944.1,1.68718249]
[1772938855036,1.28561143,1944.6,1943.9,1.28606621]
[1772938855233,6.78993086,1944.7,1944.0,1.68718249]
[1772938855234,1.64748955,1944.7,1944.0,1.68718249]
[1772938855536,2.93304361,1944.7,1944.0,1.68718249]
[1772938855737,1.28545894,1944.9,1944.0,1.68718249]
[1772938856957,2.93294849,1944.9,1944.2,1.68718249]
[1772938857658,0.001,1944.6,1944.2,1.68718249]
[1772938858562,1.64748955,1944.9,1944.2,1.68718249]
[1772938858761,1.64748955,1944.9,1944.2,1.222]
[1772938858940,2.93296877,1944.8,1944.2,4.19504402]
[1772938859140,1.28546465,1944.9,1944.3,1.68718249]
[1772938859843,1.28693809,1945.0,1944.3,1.68718249]
[1772938860244,1.28693809,1945.0,1944.0,2.90218249]
[1772938860245,1.64748955,1944.9,1944.0,2.90218249]
[1772938861785,1.28547922,1944.8,1943.8,0.0011]
[1772938861975,1.64748955,1944.7,1943.8,2.50323167]
[1772938862280,1.64748955,1944.7,1943.8,4.08900287]
[1772938862976,1.28547922,1944.8,1943.9,1.64280854]
[1772938863383,3.03838353,1944.8,1943.9,1.64280854]
[1772938863588,1.75290431,1944.7,1943.9,1.64280854]
[1772938863878,1.75290431,1944.5,1943.9,1.216]
[1772938864180,1.75290431,1944.5,1943.8,0.0011]
[1772938864479,1.75290431,1944.5,1943.8,1.2171]
[1772938865256,1.75290431,1944.5,1943.8,0.0011]
[1772938865658,1.75290431,1944.5,1943.7,0.0011]
[1772938866156,1.28574367,1944.4,1943.7,0.0011]
[1772938866354,1.75290431,1944.3,1943.7,0.0011]
[1772938868174,3.03878024,1944.2,1943.7,0.0011]
[1772938869394,1.28587593,1944.2,1943.7,0.0011]
[1772938869686,1.28587593,1944.2,1943.7,1.64390854]
[1772938869988,1.28586105,1944.3,1943.8,1.64390854]
[1772938870293,0.001,1944.5,1943.9,1.64280854]
[1772938870496,1.28541313,1944.9,1944.1,1.64280854]
[1772938871987,3.03831744,1944.9,1944.1,1.64280854]
[1772938872172,1.75290431,1944.8,1944.2,1.218]
[1772938872371,1.75290431,1944.8,1944.2,2.86080854]
[1772938873089,1.75290431,1944.8,1944.0,1.218]
[1772938874185,3.03844963,1944.7,1944.0,1.218]
[1772938874681,1.75290431,1944.6,1944.0,1.218]
[1772938875187,1.75290431,1944.6,1943.8,1.2191]
[1772938875489,1.75290431,1944.6,1943.8,0.0011]
[1772938876286,1.75290431,1944.4,1943.8,0.0011]
[1772938878280,3.03869774,1944.4,1943.8,0.0011]
[1772938878869,3.03869774,1944.4,1943.8,1.70059594]
[1772938879082,1.28579343,1944.4,1943.8,1.70059594]
[1772938879407,2.89960877,1944.4,1943.8,0.0011]
[1772938880092,1.28579343,1944.4,1943.8,1.70059594]
[1772938880800,10.59679003,1944.6,1943.8,1.70059594]
[1772938880801,0.00153886,1945.0,1943.9,0.065536]
[1772938881095,0.00153886,1945.0,1944.1,1.69949594]
[1772938881816,0.00153886,1945.0,1944.2,1.69949594]
[1772938881972,1.2869038,1945.0,1944.2,1.69949594]
[1772938882173,1.2869038,1945.0,1944.3,1.207]
[1772938882379,2.90071914,1945.0,1944.3,1.207]
[1772938882782,0.00153886,1945.0,1944.4,2.98523961]
[1772938883902,0.00153886,1945.0,1944.4,1.69949594]
[1772938884500,0.00153886,1945.0,1944.3,2.49377861]
[1772938884876,1.2868859,1945.0,1944.3,4.19327455]
[1772938887180,1.2868859,1945.0,1944.4,1.21]
[1772938887381,2.90070124,1945.0,1944.4,1.21]
[1772938888090,1.2868859,1945.0,1944.4,2.90949594]
[1772938889404,0.00153886,1945.0,1944.4,4.19517467]
[1772938892850,0.00153886,1945.0,1944.5,1.53268656]
[1772938893108,1.28514882,1945.3,1944.5,1.53268656]
[1772938893984,1.28514882,1945.3,1944.6,1.28561143]
[1772938894200,1.28514882,1945.3,1944.7,1.53268656]
[1772938894719,5.49365093,1945.4,1944.7,1.53268656]
[1772938894720,1.63820621,1945.4,1944.7,1.53268656]
[1772938894884,3.22201082,1945.4,1944.7,1.53268656]
[1772938895808,3.22201082,1945.4,1944.5,2.81831629]
[1772938895809,1.58380461,1945.3,1944.5,2.81831629]
[1772938895981,1.58380461,1945.3,1944.6,1.213]
[1772938896310,1.58380461,1945.1,1944.6,1.213]
[1772938896911,1.58380461,1945.1,1944.5,2.74568656]
[1772938897108,1.58380461,1945.1,1944.5,4.03135446]
[1772938897615,2.86901949,1945.2,1944.6,1.53268656]
[1772938897784,2.86901949,1945.2,1944.5,2.4986679]
[1772938898612,2.86901949,1945.2,1944.5,4.03135446]
[1772938898782,1.28521488,1945.2,1944.6,1.53268656]
[1772938900610,1.28520597,1945.3,1944.8,1.53268656]
[1772938901108,1.28520597,1945.3,1944.5,1.213]
[1772938901109,1.58380461,1945.2,1944.5,2.81831423]
[1772938901315,1.58380461,1945.2,1944.6,1.214]
[1772938901688,1.58380461,1945.2,1944.6,2.74668656]
[1772938903607,1.28520597,1945.3,1944.7,1.28554532]
[1772938903788,1.28520597,1945.3,1944.7,2.81823188]
[1772938904113,1.28520597,1945.3,1944.7,1.53268656]
[1772938905419,1.58380461,1945.2,1944.3,1.214]
[1772938905711,1.28528096,1945.1,1944.5,1.53268656]
[1772938905889,1.58380461,1945.0,1944.7,0.0011]
[1772938906323,1.28528096,1945.1,1944.7,0.0011]
[1772938909222,1.58380461,1945.0,1944.7,0.0011]
[1772938909529,1.58380461,1945.0,1944.5,0.0011]
[1772938911331,1.28541313,1944.9,1944.5,1.53378656]
[1772938911513,1.28539634,1945.0,1944.5,1.53378656]
[1772938911716,0.001,1945.2,1944.5,1.53378656]
[1772938911888,1.28622995,1945.2,1944.5,1.53378656]
[1772938913422,1.28622995,1945.2,1944.6,1.28561143]
[1772938913617,1.28622995,1945.2,1944.7,1.53268656]
[1772938913920,1.28622995,1945.2,1944.6,1.28561143]
[1772938914116,1.28622995,1945.2,1944.6,2.81829799]
[1772938915131,2.87003456,1945.2,1944.6,2.81829799]
[1772938918024,2.87003456,1945.2,1944.7,1.53268656]
[1772938919404,2.87003456,1945.2,1944.5,1.28677755]
[1772938919735,0.001,1945.2,1944.6,1.53378656]
[1772938919905,0.001,1945.1,1944.6,1.53378656]
[1772938920116,0.001,1945.1,1944.8,1.53268656]
[1772938920422,1.58480461,1945.1,1944.6,0.0011]
[1772938920636,1.58480461,1945.1,1944.4,0.0011]
[1772938920804,1.58480461,1945.1,1944.0,0.00153886]
[1772938920805,0.34852199,1945.0,1944.0,4.03021324]
[1772938921002,1.58380461,1944.9,1944.1,1.53268656]
[1772938922819,1.58380461,1944.9,1944.3,1.50881932]
[1772938923025,1.28545386,1944.9,1944.3,1.50881932]
[1772938923220,1.58850328,1944.8,1944.1,1.28590349]
[1772938923438,1.58850328,1944.8,1944.1,2.79472281]
[1772938923604,1.58850328,1944.8,1944.1,1.50881932]
[1772938923805,1.58850328,1944.8,1944.0,2.49550667]
[1772938924237,1.58850328,1944.8,1944.0,0.00153886]
[1772938924614,1.58850328,1944.8,1944.0,2.79635599]
[1772938925014,2.8740486,1944.7,1944.1,1.50881932]
[1772938926505,1.58850328,1944.6,1944.0,0.00153886]
[1772938926939,2.87416181,1944.6,1944.0,1.28754709]
[1772938927937,2.87416181,1944.6,1944.0,2.79636641]
[1772938928108,2.87416181,1944.6,1944.0,1.51035818]
[1772938928520,1.58850328,1944.5,1944.0,0.00153886]
[1772938929026,2.87391641,1944.9,1944.2,1.50881932]
[1772938929723,1.58850328,1944.8,1944.2,1.50881932]
[1772938930120,1.28630894,1945.1,1944.2,1.50881932]
[1772938930641,1.58850328,1945.0,1944.3,2.71681932]
[1772938930944,1.28541313,1944.9,1944.4,1.28574367]
[1772938931118,2.87391641,1944.9,1944.3,4.00361871]
[1772938933042,0.001,1945.1,1944.4,1.50881932]
[1772938933539,0.001,1944.8,1944.4,1.50881932]
[1772938933732,0.001,1945.1,1944.4,1.50881932]
[1772938934840,1.28633472,1945.1,1944.4,1.50881932]
[1772938935139,1.58950328,1945.1,1944.5,1.28567755]
[1772938935343,1.58950328,1945.1,1944.5,2.79449687]
[1772938935638,0.001,1945.1,1944.6,1.50881932]
[1772938937234,1.28628096,1945.1,1944.6,1.50881932]
[1772938937968,1.28628096,1945.1,1944.6,2.79442046]
[1772938938248,1.28628096,1945.1,1944.7,1.50881932]
[1772938938249,0.001,1945.1,1944.7,1.50881932]
[1772938939754,0.001,1945.1,1944.7,2.79435612]
[1772938941421,0.001,1945.1,1944.7,1.50881932]
[1772938944147,0.001,1945.1,1944.7,2.79436106]
[1772938944551,0.001,1945.1,1944.7,1.50881932]
[1772938945833,0.001,1945.1,1944.8,0.0011]
[1772938946033,0.001,1945.0,1944.8,0.0011]
[1772938946240,1.58950328,1945.0,1944.8,0.0011]
[1772938946827,1.28541313,1944.9,1944.8,0.0011]
[1772938947426,0.001,1945.0,1944.8,0.0011]
[1772938948245,0.001,1945.0,1944.8,1.50991932]
[1772938948834,0.001,1945.0,1944.9,1.28541313]
[1772938949650,0.001,1945.0,1944.9,1.50881932]
[1772938950824,6.7283967,1945.6,1944.9,1.50881932]
[1772938951048,1.58850328,1945.5,1944.9,1.50881932]
[1772938951556,1.58850328,1945.5,1944.8,0.0011]
[1772938952056,1.58850328,1945.5,1944.8,2.79539244]
[1772938952255,1.58850328,1945.5,1944.8,1.50991932]
[1772938952454,1.58850328,1945.5,1944.8,2.7953923]
[1772938953375,1.28508275,1945.4,1944.8,2.7953923]
[1772938953655,2.94615012,1945.4,1944.8,2.7953923]
[1772938954562,1.28508275,1945.4,1944.9,1.63287018]
[1772938955552,1.2850011,1945.6,1945.1,1.63287018]
[1772938956156,2.94597711,1945.7,1945.1,1.63287018]
[1772938956544,1.66106737,1945.6,1945.1,1.63287018]
[1772938957429,1.2850167,1945.5,1945.1,1.63287018]
[1772938958257,1.66106737,1945.4,1944.9,1.63287018]
[1772938959362,1.2850167,1945.5,1944.9,1.63287018]
[1772938959562,1.2850167,1945.5,1945.0,2.91821722]
[1772938960056,2.94608407,1945.5,1945.0,1.63287018]
[1772938960264,0.001,1945.4,1945.0,1.63287018]
[1772938961261,0.001,1945.4,1944.9,0.0011]
[1772938961572,1.28514882,1945.3,1944.9,0.0011]
[1772938961935,2.94621619,1945.3,1944.9,0.0011]
[1772938968139,2.94621619,1945.3,1944.9,1.63397018]
[1772938971671,1.66106737,1945.3,1944.9,1.63397018]
[1772938971975,1.66106737,1945.3,1944.9,2.91933795]
[1772938972269,1.66106737,1945.3,1944.9,1.28646777]
[1772938972469,1.66106737,1945.3,1945.0,1.63287018]
[1772938972674,1.28611489,1945.4,1945.0,1.63287018]
[1772938973277,1.28611489,1945.4,1945.0,1.63397018]
[1772938973472,1.28608917,1945.4,1945.0,1.63397018]
[1772938974176,0.001,1945.4,1945.0,2.91931691]
[1772938974366,0.001,1945.4,1945.0,1.63397018]
[1772938974876,1.66206737,1945.4,1945.0,1.63397018]
[1772938976262,2.94718907,1945.4,1945.0,1.63397018]
[1772938977376,1.66206737,1945.4,1945.0,2.91930709]
[1772938977684,1.66206737,1945.4,1945.1,1.63287018]
[1772938978052,1.28608377,1945.4,1945.1,1.63287018]
[1772938979386,0.001,1945.4,1945.1,1.63287018]
[1772938979950,0.001,1945.4,1945.1,2.9181489]
[1772938980353,1.66106737,1945.9,1945.2,1.63287018]
[1772938980560,2.94586558,1945.9,1945.3,1.28514882]
[1772938980764,2.94586558,1945.9,1945.4,1.63287018]
[1772938981696,1.66106737,1945.8,1945.4,1.63287018]
[1772938982384,0.00153886,1946.0,1945.4,1.63287018]
[1772938982588,1.53440182,1945.9,1945.4,1.63287018]
[1772938982785,2.81917324,1945.9,1945.5,1.55224264]
[1772938983158,1.53594068,1946.0,1945.5,1.55224264]
[1772938983358,1.28622749,1946.0,1945.5,1.55224264]
[1772938983786,0.00153886,1946.0,1945.5,1.55224264]
[1772938984157,1.28623785,1946.0,1945.5,1.55224264]
[1772938984357,1.28623839,1946.0,1945.5,1.55224264]
[1772938984791,0.00153886,1946.0,1945.5,1.55224264]
[1772938984993,1.28459828,1946.2,1945.6,1.55224264]
[1772938985190,1.53440182,1947.9,1946.3,1.55224264]
[1772938985400,1.53440182,1947.6,1946.5,1.55224264]
[1772938985988,8.15916514,1947.8,1946.5,1.55224264]
[1772938986288,5.13426092,1947.9,1946.5,1.55224264]
[1772938986289,8.15916514,1947.7,1946.5,1.55224264]
[1772938986587,6.62322446,1947.6,1946.5,1.55224264]
[1772938986788,1.53440182,1947.6,1946.5,1.55224264]
[1772938986960,2.81806223,1947.6,1946.7,1.55224264]
[1772938987964,6.62476332,1947.5,1946.7,1.55224264]
[1772938988184,5.13406899,1947.8,1946.7,1.55224264]
[1772938988185,6.62322446,1947.6,1946.7,1.55224264]
[1772938988388,1.28348245,1947.9,1946.7,1.55224264]
[1772938988590,6.62322446,1947.7,1946.7,1.55224264]
[1772938988975,9.44284231,1947.6,1946.9,1.55224264]
[1772938989179,1.53440182,1947.6,1947.0,2.72024264]
[1772938989382,8.15916514,1947.5,1946.9,1.17]
[1772938989556,8.15916514,1947.5,1946.9,2.72224264]
[1772938989756,8.15916514,1947.5,1947.0,1.55224264]
[1772938991274,1.28376296,1947.4,1947.0,1.55224264]
[1772938991470,9.44291264,1947.5,1947.0,1.55224264]
[1772938991676,6.62476332,1947.4,1947.0,1.55224264]
[1772938993296,6.62476332,1947.3,1946.8,1.55224264]
[1772938993593,2.81818143,1947.4,1946.3,0.91263699]
[1772938993594,1.53440182,1947.2,1946.3,0.91263699]
[1772938993765,1.53440182,1947.1,1946.3,3.74936686]
[1772938994178,6.62476332,1947.0,1946.4,1.55224264]
[1772938994764,8.15916514,1947.0,1946.4,1.55224264]
[1772938995504,6.62476332,1946.9,1946.4,2.83663196]
[1772938995672,6.62476332,1946.9,1946.5,1.55224264]
[1772938996927,2.81829753,1947.2,1946.5,1.55224264]
[1772938997091,6.62476332,1947.1,1946.5,1.55224264]
[1772938997295,6.62476332,1947.1,1946.7,1.55224264]
[1772938997520,2.81807678,1947.6,1946.8,1.28415861]
[1772938997672,2.81807678,1947.6,1946.9,1.55224264]
[1772938998287,6.62476332,1947.5,1946.9,1.55224264]
[1772938999504,1.28353287,1947.8,1947.1,1.55224264]
[1772938999709,5.41292008,1947.9,1947.2,1.55224264]
[1772938999901,6.62476332,1947.8,1947.2,1.55224264]
[1772939000578,6.62476332,1947.7,1947.2,1.55224264]
[1772939000779,1.28349463,1947.9,1947.2,1.55224264]
[1772939001006,6.62476332,1947.8,1947.2,1.55224264]
[1772939001783,6.62476332,1947.8,1947.3,2.83607153]
[1772939002285,7.90672653,1947.8,1947.3,2.83607153]
[1772939002606,6.62476332,1947.7,1947.2,1.55224264]
[1772939002808,8.15916514,1947.7,1947.2,1.55224264]
[1772939003108,1.53440182,1947.5,1946.9,2.75324264]
[1772939003309,1.43440182,1947.5,1946.9,2.75324264]
[1772939003509,6.62476332,1947.4,1947.0,1.55224264]
[1772939003812,6.62476332,1947.6,1947.0,1.55224264]
[1772939004007,1.28369704,1947.5,1947.0,2.83624735]
[1772939004994,7.90844251,1947.6,1947.0,2.83624735]
[1772939005194,6.62476332,1947.5,1947.0,2.83624735]
[1772939005795,6.62476332,1947.5,1947.0,1.55224264]
[1772939006102,6.62476332,1947.5,1946.8,5.13654738]
[1772939006103,9.44296246,1947.4,1946.8,1.55224264]
[1772939006417,9.44296246,1947.4,1946.8,4.04038805]
[1772939007811,7.90856064,1947.4,1946.9,1.55224264]
[1772939008408,6.62476332,1947.3,1947.0,1.55224264]
[1772939008717,1.28369787,1947.5,1947.0,1.55224264]
[1772939008884,7.90846119,1947.5,1947.0,1.55224264]
[1772939010316,6.62476332,1947.4,1947.1,2.8362034]
[1772939010521,6.62476332,1947.5,1947.2,1.55224264]
[1772939010720,7.90833157,1947.7,1947.2,1.55224264]
[1772939010925,6.62476332,1947.6,1947.2,1.55224264]
[1772939011397,6.56476332,1947.6,1947.2,1.55224264]
[1772939012197,1.2835027,1947.8,1947.3,2.76124264]
[1772939012398,6.56476332,1947.7,1947.3,2.76124264]
[1772939012735,6.56476332,1947.7,1947.4,1.58011662]
[1772939012897,1.67880691,1947.5,1946.9,0.0011]
[1772939013625,1.67880691,1947.3,1946.9,0.0011]
[1772939014130,8.24357023,1947.2,1946.9,0.0011]
[1772939014300,1.67880691,1947.2,1946.9,0.0011]
[1772939014724,7.84872408,1947.1,1946.9,0.0011]
[1772939015294,6.56476332,1947.0,1946.9,0.0011]
[1772939017231,1.67880691,1946.9,1946.3,1.211]
[1772939017429,1.67880691,1946.8,1946.2,1.211]
[1772939017602,8.24247023,1946.8,1946.2,1.211]
[1772939018006,1.2840267,1947.0,1946.3,1.58011662]
[1772939018213,6.56366332,1946.9,1946.3,1.58011662]
[1772939018417,1.2840267,1947.0,1946.3,1.58011662]
[1772939018612,6.56366332,1946.9,1946.3,1.58011662]
[1772939019055,6.56366332,1946.9,1946.5,1.58011662]
[1772939019225,7.84775628,1946.9,1946.5,1.58011662]
[1772939019425,7.84775628,1946.9,1946.5,2.79211662]
[1772939020535,6.56366332,1946.9,1946.5,2.79211662]
[1772939020933,1.67880691,1947.6,1946.6,1.58011662]
[1772939021240,1.28369704,1947.5,1946.8,1.58011662]
[1772939021443,6.56366332,1947.5,1946.8,1.58011662]
[1772939022960,8.24247023,1947.5,1946.8,1.58011662]
[1772939023133,1.67880691,1947.3,1946.5,1.58011662]
[1772939023525,6.56366332,1947.2,1946.9,0.0011]
[1772939025041,9.52643099,1947.1,1946.5,1.58011662]
[1772939025243,1.67880691,1947.0,1946.4,1.213]
[1772939025437,8.24247023,1947.0,1946.4,1.213]
[1772939025850,6.56366332,1946.9,1946.4,1.213]
[1772939026049,6.56366332,1946.9,1946.3,4.07755949]
[1772939026248,6.56366332,1946.8,1946.3,4.07755949]
[1772939026424,6.56366332,1946.9,1946.3,4.07755949]
[1772939027855,7.84776485,1946.9,1946.3,4.07755949]
[1772939028540,6.56366332,1946.8,1946.3,4.07759713]
[1772939029352,6.56366332,1946.8,1946.4,1.58011662]
[1772939029542,1.67880691,1947.0,1946.4,1.58011662]
[1772939029744,1.28410306,1946.9,1946.4,1.58011662]
[1772939030256,1.28410306,1946.9,1946.4,2.86449882]
[1772939032663,1.28410306,1946.9,1946.4,1.56449882]
[1772939034870,6.56366332,1946.8,1946.4,1.56449882]
[1772939036363,7.84782753,1946.8,1946.4,1.56449882]
[1772939036674,7.84782753,1946.8,1946.4,0.28011662]
[1772939037148,7.84782753,1946.8,1946.5,0.0011]
[1772939037352,1.67880691,1946.6,1946.0,0.00153886]
[1772939037580,1.67880691,1946.6,1946.4,0.0011]
[1772939037873,7.56879199,1946.5,1946.2,0.0011]
[1772939038169,1.67880691,1946.5,1946.2,0.0011]
[1772939038370,1.67880691,1946.7,1946.2,0.0011]
[1772939038558,5.88998508,1946.7,1946.3,1.58011662]
[1772939038763,5.88998508,1946.7,1946.4,1.28442252]
[1772939039136,0.001,1946.8,1946.4,1.28442252]
[1772939039137,5.88998508,1946.6,1946.4,1.28442252]
[1772939039341,0.001,1946.8,1946.4,2.86453914]
[1772939039667,5.88998508,1946.7,1946.5,1.58011662]
[1772939040273,0.00153886,1947.0,1946.5,1.58011662]
[1772939041167,0.00153886,1947.0,1946.6,1.28429055]
[1772939041775,0.00153886,1947.0,1946.5,2.86442296]
[1772939042190,0.00153886,1947.0,1946.6,1.75262236]
[1772939043375,0.00153886,1947.0,1946.7,1.216]
[1772939043749,1.60268385,1947.0,1946.5,1.216]
[1772939045547,2.88675635,1947.0,1946.5,2.50033624]
[1772939045874,2.88675635,1947.0,1946.5,2.50033995]
[1772939046586,2.88675635,1947.0,1946.5,1.216]
[1772939047857,1.60114499,1946.9,1946.5,1.216]
[1772939048405,0.00153886,1947.0,1946.5,2.50034313]
[1772939048704,2.88484203,1947.5,1946.7,1.62390691]
[1772939048906,10.17,1947.8,1946.7,1.62390691]
[1772939048907,1.60114499,1947.8,1946.7,1.99148383]
[1772939049070,1.60114499,1947.8,1946.7,1.62390691]
[1772939049266,1.60114499,1947.8,1946.8,1.216]
[1772939049467,1.60114499,1947.8,1946.8,2.83990691]
[1772939049668,1.60114499,1947.8,1946.9,1.62390691]
[1772939050099,2.88468593,1947.8,1947.1,1.62390691]
[1772939050804,1.60114499,1947.7,1947.1,2.83990691]
[1772939051702,1.60114499,1947.7,1947.1,1.216]
[1772939052203,1.28354094,1947.8,1947.2,2.90780173]
[1772939052377,1.60114499,1947.7,1947.1,2.4999124]
[1772939052578,1.60114499,1947.7,1947.1,2.49994656]
[1772939052800,1.60114499,1947.7,1947.1,1.216]
[1772939053196,1.60114499,1947.7,1947.1,2.49995318]
[1772939053587,1.60114499,1947.7,1947.1,4.12386009]
[1772939054308,2.88476835,1947.7,1947.1,4.12386009]
[1772939055678,1.60114499,1947.7,1947.1,4.12386009]
[1772939056084,2.88471238,1947.7,1947.2,1.62390691]
[1772939056314,2.88471238,1947.7,1947.3,1.28382889]
[1772939056523,1.28356739,1947.7,1947.3,2.9077358]
[1772939056724,1.28355221,1947.8,1947.3,2.9077358]
[1772939057223,1.28355221,1947.8,1947.3,1.62390691]
[1772939057431,2.8846972,1947.8,1947.3,1.62390691]
[1772939059107,2.8846972,1947.8,1947.3,2.83990691]
[1772939059616,2.8846972,1947.8,1947.3,4.12373155]
[1772939060116,1.60114499,1947.7,1947.3,2.83990691]
[1772939060506,1.28347418,1947.9,1947.3,4.12371894]
[1772939060683,0.00153886,1948.0,1947.4,1.62390691]
[1772939060684,1.28495777,1948.0,1947.4,1.62390691]
[1772939060889,0.00153886,1948.0,1947.5,2.90760395]
[1772939061089,0.00153886,1948.0,1947.6,1.62390691]
[1772939062691,1.60268385,1948.0,1947.4,2.90762236]
[1772939063116,2.88607428,1948.0,1947.4,1.28371545]
[1772939063318,2.88607428,1948.0,1947.5,1.62390691]
[1772939063701,0.00153886,1948.0,1947.5,1.62390691]
[1772939064303,1.28492188,1948.0,1947.5,1.62390691]
[1772939065102,0.00153886,1948.0,1947.5,2.90756593]
[1772939065707,0.00153886,1948.0,1947.6,1.62390691]
[1772939066219,1.60114499,1947.9,1947.3,1.217]
[1772939066595,1.60114499,1947.9,1947.2,1.28388781]
[1772939066914,0.00153886,1948.0,1947.3,1.62390691]
[1772939069322,0.00153886,1948.0,1947.5,1.62390691]
[1772939070534,1.60268385,1948.0,1947.5,1.62390691]
[1772939070716,1.60268385,1948.0,1947.4,1.28376296]
[1772939071318,1.60268385,1948.0,1947.4,2.90766987]
[1772939071539,1.60268385,1948.0,1947.5,1.62390691]
[1772939071703,2.88606208,1948.0,1947.5,1.62390691]
[1772939072114,1.60114499,1947.9,1947.2,1.28382889]
[1772939072438,1.56681831,1947.7,1946.6,1.60251579]
[1772939072598,1.56681831,1947.6,1946.7,1.218]
[1772939073228,1.56681831,1947.6,1946.6,0.0011]
[1772939073604,1.56681831,1947.4,1946.6,0.0011]
[1772939073912,1.56681831,1947.3,1946.6,0.0011]
[1772939074589,1.79408935,1947.1,1946.6,0.0011]
[1772939074707,1.56681831,1947.0,1946.6,0.0011]
[1772939075338,1.56681831,1947.0,1946.3,0.0011]
[1772939075852,1.56681831,1946.8,1946.3,0.0011]
[1772939076736,1.56681831,1946.8,1946.7,0.0011]
[1772939076931,1.56681831,1946.8,1946.3,0.0011]
[1772939077650,1.56681831,1946.8,1946.5,0.0011]
[1772939077843,2.85103144,1946.8,1946.5,0.0011]
[1772939078379,1.28421313,1946.8,1946.5,0.0011]
[1772939079062,2.85086502,1947.0,1946.5,0.0011]
[1772939079261,1.56681831,1947.0,1946.5,0.0011]
[1772939079471,2.85076358,1947.2,1946.5,1.60251579]
[1772939079880,2.85076358,1947.2,1946.6,1.28429055]
[1772939080058,2.85076358,1947.2,1946.5,1.60251579]
[1772939080248,1.56681831,1947.1,1946.5,1.28545453]
[1772939082036,1.2840267,1947.0,1946.5,0.0011]
[1772939082258,1.2840267,1947.0,1946.5,1.28545145]
[1772939082484,1.28392849,1947.2,1946.5,2.88686724]
[1772939085185,2.8507468,1947.2,1946.5,2.88686724]
[1772939086179,1.56681831,1947.1,1946.5,2.88685542]
[1772939088183,2.85083949,1947.1,1946.5,2.88685542]
[1772939089901,2.85083949,1947.1,1946.6,0.0011]
[1772939090400,2.85183949,1947.1,1946.6,0.0011]
[1772939090608,1.56681831,1947.0,1946.6,0.0011]
[1772939090974,1.56681831,1947.0,1946.5,0.0011]
[1772939091571,1.28502118,1947.1,1946.5,2.88686574]
[1772939091572,0.001,1947.1,1946.5,2.88686574]
[1772939091773,0.001,1947.1,1946.6,1.60141579]
[1772939092107,2.85179232,1947.1,1946.6,1.60141579]
[1772939092483,2.85179232,1947.1,1946.6,2.88570443]
[1772939094610,1.56681831,1947.0,1946.5,0.0011]
[1772939095011,1.56681831,1947.0,1946.5,1.28544999]
[1772939095500,1.56681831,1947.0,1946.5,0.0011]
[1772939096481,1.56681831,1946.8,1946.5,0.0011]
[1772939098625,1.56681831,1946.6,1946.5,0.0011]
[1772939098834,1.56681831,1946.6,1946.3,0.0011]
[1772939101504,2.85113452,1946.6,1946.3,0.0011]
[1772939102023,2.85084501,1947.0,1946.3,1.60251579]
[1772939102224,1.56681831,1947.0,1946.4,1.60141579]
[1772939102589,1.2850098,1947.1,1946.4,1.60141579]
[1772939103223,1.2850098,1947.1,1946.4,1.60251579]
[1772939103418,0.001,1947.0,1946.4,1.60251579]
[1772939103839,0.001,1947.0,1946.5,2.89024541]
[1772939105256,0.001,1947.0,1946.6,1.60588888]
[1772939105830,0.001,1947.0,1946.6,2.89017291]
[1772939106070,0.001,1947.0,1946.6,1.60588888]
[1772939106226,0.001,1947.0,1946.7,1.60588888]
[1772939107240,0.001,1947.0,1946.5,1.60588888]
[1772939108136,0.001,1947.0,1946.6,1.60588888]
[1772939108342,0.001,1947.0,1946.6,2.81788888]
[1772939110167,0.001,1947.0,1946.8,1.60588888]
[1772939111851,0.001,1947.0,1946.6,4.10213481]
[1772939112667,0.001,1947.0,1946.6,4.10413481]
[1772939114062,0.001,1947.0,1946.7,1.60588888]
[1772939114263,5.13442279,1947.7,1946.7,1.60588888]
[1772939114264,2.98062887,1947.6,1946.7,1.60588888]
[1772939114652,1.69694406,1947.5,1946.6,2.81988888]
[1772939114862,1.69694406,1947.5,1946.6,1.214]
[1772939115471,1.69694406,1947.5,1946.4,4.10536358]
[1772939116340,1.69694406,1947.5,1946.5,0.0011]
[1772939116642,0.001,1946.9,1946.5,0.0011]
[1772939118773,1.28509266,1946.9,1946.5,0.0011]
[1772939119277,0.001,1946.9,1946.5,0.0011]
[1772939119777,1.69794406,1946.9,1946.5,0.0011]
[1772939120884,2.98110267,1946.8,1946.5,0.0011]
[1772939121249,1.69694406,1946.7,1946.4,0.0011]
[1772939121565,1.69694406,1946.7,1946.2,0.0011]
[1772939123284,1.69694406,1946.5,1946.2,0.0011]
[1772939124765,1.69694406,1946.5,1946.1,0.0011]
[1772939126292,2.98136658,1946.4,1946.1,0.0011]
[1772939127088,1.69694406,1946.3,1946.0,0.00153886]
[1772939128403,1.69694406,1946.7,1946.0,1.60742774]
[1772939128612,2.98208934,1946.9,1946.2,1.60588888]
[1772939129692,0.001,1946.9,1946.2,1.9734658]
[1772939129894,0.001,1946.9,1946.2,1.60588888]
[1772939130094,0.001,1946.9,1946.3,1.211]
[1772939130270,0.001,1946.9,1946.6,1.60588888]
[1772939132096,0.001,1946.9,1946.5,1.28435653]
[1772939132283,0.001,1946.9,1946.4,2.89026684]
[1772939132598,0.001,1946.9,1946.5,1.52643927]
[1772939134474,0.001,1946.9,1946.2,6.35020364]
[1772939134475,0.001,1946.9,1946.2,1.46612222]
[1772939134673,0.001,1946.9,1946.3,1.46446862]
[1772939136712,0.001,1946.9,1946.4,1.28442252]
[1772939137007,0.001,1946.9,1946.5,1.50535305]
[1772939139106,0.001,1946.9,1946.5,2.7896687]
[1772939140475,0.001,1946.8,1946.5,2.7896687]
[1772939141582,1.61902308,1947.0,1946.5,2.7896687]
[1772939141782,1.61902308,1947.2,1946.6,1.49639309]
[1772939143839,1.61902308,1947.0,1946.6,1.49639309]
[1772939144035,1.61902308,1947.0,1946.6,2.7806762]
[1772939144334,1.61902308,1947.4,1946.7,1.52643927]
[1772939146238,1.28382889,1947.3,1946.9,1.52643927]
[1772939147738,1.28382889,1947.3,1946.9,2.81052745]
[1772939147941,2.90285197,1947.3,1946.9,2.81052745]
[1772939149240,1.61902308,1947.3,1946.9,2.81052745]
[1772939149644,1.28381083,1947.4,1947.0,1.52643927]
[1772939149645,1.61902308,1947.4,1947.0,1.52643927]
[1772939149813,2.90258831,1947.7,1947.2,1.52643927]
[1772939150933,1.61902308,1947.6,1947.2,1.52643927]
[1772939151243,1.61902308,1947.6,1947.0,2.81041671]